fUSD/lending_fUSD_20250320
["ID","MTS","AMOUNT","RATE_DAILY","PERIOD"]
[356426617,1742436631983,-166.23137881,0.00027879,2]
[356426619,1742436631992,-450.0,0.00027879,2]
[356426621,1742436632003,-27287.8662,0.0002788,2]
[356426624,1742436632013,-5000.0,0.0002788,2]
[356426627,1742436632023,-469.91874468,0.000279,4]
[356426640,1742436632083,-509.45195278,0.000279,2]
[356426643,1742436632093,-509.45195265,0.00027914,2]
[356426645,1742436632104,-500.0,0.00027926,2]
[356426647,1742436632113,-500.0,0.00027926,2]
[356426649,1742436632123,-500.0,0.00027926,2]
[356426651,1742436632132,-500.0,0.00027926,2]
[356426653,1742436632142,-500.0,0.00027926,2]
[356426655,1742436632152,-500.0,0.00027926,2]
[356426657,1742436632162,-707.73,0.00027926,2]
[356426659,1742436632171,-150.0,0.00027942,2]
[356426661,1742436632180,-157.032011,0.00027948,120]
[356426663,1742436632190,-302.0,0.00027962,2]
[356426665,1742436632199,-158.49,0.00027977,2]
[356426667,1742436632209,-245.55616662,0.00027978,2]
[356426669,1742436632219,-1119.261,0.00027978,18]
[356426671,1742436632234,-500.0,0.00027979,2]
[356426673,1742436632244,-603.87,0.00027979,2]
[356426675,1742436632253,-628.76,0.00027979,2]
[356426677,1742436632263,-650.27,0.00027979,2]
[356426679,1742436632273,-500.0,0.00027979,2]
[356426681,1742436632283,-500.0,0.00027979,2]
[356426683,1742436632291,-500.0,0.00027979,2]
[356426685,1742436632301,-500.0,0.00027979,2]
[356426687,1742436632311,-500.0,0.00027979,2]
[356426689,1742436632321,-500.0,0.00027979,2]
[356426691,1742436632330,-500.0,0.00027979,2]
[356426693,1742436632339,-500.0,0.00027979,2]
[356426695,1742436632350,-500.0,0.00027979,2]
[356426697,1742436632360,-500.0,0.00027979,2]
[356426698,1742436632370,-500.0,0.00027979,2]
[356426699,1742436632379,-500.0,0.00027979,2]
[356426700,1742436632388,-500.0,0.00027979,2]
[356426701,1742436632397,-500.0,0.00027979,2]
[356426703,1742436632407,-500.0,0.00027979,2]
[356426704,1742436632417,-500.0,0.00027979,2]
[356426705,1742436632426,-500.0,0.00027979,2]
[356426706,1742436632436,-500.0,0.00027979,2]
[356426707,1742436632446,-500.0,0.00027979,2]
[356426708,1742436632455,-500.0,0.00027979,2]
[356426709,1742436632465,-500.0,0.00027979,2]
[356426710,1742436632475,-537.93,0.00027979,2]
[356426711,1742436632485,-423.58552336,0.00027979,2]
[356426712,1742436632495,-500.0,0.00027979,2]
[356426713,1742436632505,-500.0,0.00027979,2]
[356426714,1742436632514,-500.0,0.00027979,2]
[356426715,1742436632523,-500.0,0.00027979,2]
[356426716,1742436632533,-500.0,0.00027979,2]
[356426717,1742436632543,-899.46,0.00027979,2]
[356426718,1742436632552,-500.0,0.00027979,2]
[356426719,1742436632562,-500.0,0.00027979,2]
[356426720,1742436632572,-500.0,0.00027979,2]
[356426721,1742436632582,-500.0,0.00027979,2]
[356426722,1742436632591,-500.0,0.00027979,2]
[356426723,1742436632600,-718.62,0.00027979,2]
[356426724,1742436632609,-500.0,0.00027979,2]
[356426725,1742436632619,-500.0,0.00027979,2]
[356426726,1742436632629,-500.0,0.00027979,30]
[356426727,1742436632638,-592.26,0.00027979,2]
[356426728,1742436632648,-500.0,0.00027979,2]
[356426729,1742436632657,-500.0,0.00027979,2]
[356426730,1742436632667,-500.0,0.00027979,2]
[356426731,1742436632677,-500.0,0.00027979,2]
[356426732,1742436632686,-500.0,0.00027979,2]
[356426733,1742436632696,-500.0,0.00027979,2]
[356426734,1742436632706,-500.0,0.00027979,2]
[356426735,1742436632715,-1075.0,0.00027979,2]
[356426736,1742436632725,-674.87,0.00027979,2]
[356426737,1742436632734,-500.0,0.00027979,2]
[356426738,1742436632743,-852.02,0.00027979,2]
[356426739,1742436632752,-500.0,0.00027979,2]
[356426740,1742436632763,-500.0,0.00027979,2]
[356426741,1742436632773,-528.22,0.00027979,2]
[356426742,1742436632783,-500.0,0.00027979,2]
[356426743,1742436632793,-500.0,0.00027979,2]
[356426744,1742436632803,-500.0,0.00027979,2]
[356426745,1742436632813,-500.0,0.00027979,2]
[356426746,1742436632823,-500.0,0.00027979,2]
[356426747,1742436632833,-500.0,0.00027979,2]
[356426748,1742436632843,-500.0,0.00027979,2]
[356426749,1742436632852,-500.0,0.00027979,2]
[356426750,1742436632862,-500.0,0.00027979,2]
[356426751,1742436632873,-500.0,0.00027979,2]
[356426752,1742436632884,-500.0,0.00027979,2]
[356426753,1742436632894,-500.0,0.00027979,2]
[356426754,1742436632905,-500.0,0.00027979,2]
[356426755,1742436632915,-500.0,0.00027979,2]
[356426756,1742436632925,-500.0,0.00027979,2]
[356426757,1742436632935,-500.0,0.00027979,2]
[356426758,1742436632945,-500.0,0.00027979,2]
[356426759,1742436632954,-500.0,0.00027979,2]
[356426760,1742436632964,-346.04813753,0.00027979,2]
[356426761,1742436632974,-500.0,0.00027979,2]
[356426762,1742436632984,-517.99,0.00027979,2]
[356426763,1742436632993,-656.08,0.00027979,2]
[356426764,1742436633003,-500.0,0.00027979,2]
[356426765,1742436633014,-500.0,0.00027979,2]
[356426766,1742436633023,-500.0,0.00027979,2]
[356426767,1742436633035,-500.0,0.00027979,2]
[356426768,1742436633053,-500.0,0.00027979,2]
[356426769,1742436633063,-500.0,0.00027979,2]
[356426770,1742436633075,-500.0,0.00027979,2]
[356426771,1742436633087,-500.0,0.00027979,2]
[356426772,1742436633097,-500.0,0.00027979,2]
[356426773,1742436633108,-500.0,0.00027979,2]
[356426774,1742436633119,-500.0,0.00027979,2]
[356426775,1742436633129,-500.0,0.00027979,2]
[356426776,1742436633139,-500.0,0.00027979,2]
[356426777,1742436633149,-544.49,0.00027979,2]
[356426778,1742436633159,-500.0,0.00027979,2]
[356426779,1742436633170,-500.0,0.00027979,2]
[356426780,1742436633180,-500.0,0.00027979,2]
[356426781,1742436633191,-508.16,0.00027979,2]
[356426782,1742436633202,-500.0,0.00027979,2]
[356426783,1742436633212,-500.0,0.00027979,2]
[356426784,1742436633223,-500.0,0.00027979,2]
[356426785,1742436633234,-500.0,0.00027979,2]
[356426786,1742436633246,-500.0,0.00027979,2]
[356426787,1742436633257,-500.0,0.00027979,2]
[356426788,1742436633268,-500.0,0.00027979,2]
[356426789,1742436633279,-705.48,0.00027979,2]
[356426790,1742436633289,-500.0,0.00027979,2]
[356426791,1742436633299,-500.0,0.00027979,2]
[356426792,1742436633309,-500.0,0.00027979,2]
[356426793,1742436633324,-500.0,0.00027979,2]
[356426794,1742436633335,-572.58276051,0.00027979,2]
[356426795,1742436633345,-500.0,0.00027979,2]
[356426796,1742436633355,-500.0,0.00027979,2]
[356426797,1742436633365,-696.41,0.00027979,2]
[356426798,1742436633376,-500.0,0.00027979,2]
[356426799,1742436633386,-500.0,0.00027979,2]
[356426800,1742436633396,-500.0,0.00027979,2]
[356426801,1742436633406,-500.0,0.00027979,2]
[356426802,1742436633416,-500.0,0.00027979,2]
[356426803,1742436633426,-500.0,0.00027979,2]
[356426804,1742436633440,-500.0,0.00027979,2]
[356426805,1742436633451,-500.0,0.00027979,2]
[356426806,1742436633461,-500.0,0.00027979,2]
[356426807,1742436633472,-500.0,0.00027979,2]
[356426808,1742436633483,-500.0,0.00027979,2]
[356426809,1742436633492,-539.49,0.00027979,2]
[356426810,1742436633502,-500.0,0.00027979,2]
[356426811,1742436633512,-500.0,0.00027979,2]
[356426812,1742436633523,-500.0,0.00027979,2]
[356426813,1742436633532,-500.0,0.00027979,2]
[356426814,1742436633542,-500.0,0.00027979,2]
[356426815,1742436633552,-500.0,0.00027979,2]
[356426816,1742436633562,-500.0,0.00027979,2]
[356426817,1742436633572,-500.0,0.00027979,2]
[356426818,1742436633581,-500.0,0.00027979,2]
[356426819,1742436633590,-500.0,0.00027979,2]
[356426820,1742436633600,-529.55,0.00027979,2]
[356426821,1742436633610,-500.0,0.00027979,2]
[356426822,1742436633619,-500.0,0.00027979,2]
[356426823,1742436633629,-500.0,0.00027979,2]
[356426824,1742436633638,-737.99,0.00027979,2]
[356426825,1742436633648,-500.0,0.00027979,2]
[356426826,1742436633657,-500.0,0.00027979,2]
[356426827,1742436633667,-500.0,0.00027979,2]
[356426828,1742436633677,-500.0,0.00027979,2]
[356426829,1742436633686,-500.0,0.00027979,2]
[356426830,1742436633696,-668.7,0.00027979,2]
[356426831,1742436633705,-500.0,0.00027979,2]
[356426832,1742436633715,-500.0,0.00027979,2]
[356426833,1742436633724,-500.0,0.00027979,2]
[356426834,1742436633734,-500.0,0.00027979,2]
[356426835,1742436633744,-574.08,0.00027979,2]
[356426836,1742436633754,-521.31,0.00027979,2]
[356426837,1742436633764,-500.0,0.00027979,2]
[356426838,1742436633773,-500.0,0.00027979,2]
[356426839,1742436633783,-753.72,0.00027979,2]
[356426840,1742436633792,-595.74,0.00027979,2]
[356426841,1742436633802,-500.0,0.00027979,2]
[356426842,1742436633816,-500.0,0.00027979,2]
[356426843,1742436633827,-500.0,0.00027979,2]
[356426844,1742436633837,-500.0,0.00027979,2]
[356426845,1742436633845,-500.0,0.00027979,2]
[356426846,1742436633855,-500.0,0.00027979,2]
[356426847,1742436633864,-500.0,0.00027979,2]
[356426848,1742436633873,-500.0,0.00027979,2]
[356426849,1742436633882,-500.0,0.00027979,2]
[356426850,1742436633891,-500.0,0.00027979,2]
[356426851,1742436633900,-500.0,0.00027979,2]
[356426852,1742436633909,-500.0,0.00027979,2]
[356426853,1742436633919,-612.03,0.00027979,2]
[356426854,1742436633928,-500.0,0.00027979,2]
[356426855,1742436633937,-627.85,0.00027979,2]
[356426856,1742436633946,-500.0,0.00027979,2]
[356426857,1742436633956,-500.0,0.00027979,2]
[356426858,1742436633965,-500.0,0.00027979,2]
[356426859,1742436633975,-500.0,0.00027979,2]
[356426860,1742436633985,-500.0,0.00027979,2]
[356426861,1742436633994,-500.0,0.00027979,2]
[356426862,1742436634004,-505.81,0.00027979,2]
[356426863,1742436634013,-500.0,0.00027979,2]
[356426864,1742436634023,-500.0,0.00027979,2]
[356426865,1742436634033,-500.0,0.00027979,2]
[356426866,1742436634043,-665.96,0.00027979,2]
[356426867,1742436634054,-166.30430321,0.0002798,12]
[356426868,1742436634064,-500.47050775,0.0002798,2]
[356426869,1742436634075,-500.0,0.0002798,2]
[356426870,1742436634085,-500.0,0.0002798,2]
[356426871,1742436634094,-545.5,0.0002798,2]
[356426872,1742436634104,-500.0,0.0002798,2]
[356426873,1742436634114,-500.0,0.0002798,2]
[356426874,1742436634123,-1065.87,0.0002798,2]
[356426875,1742436634133,-525.47,0.0002798,2]
[356426876,1742436634143,-500.0,0.0002798,2]
[356426877,1742436634153,-500.0,0.0002798,2]
[356426878,1742436634163,-522.62,0.0002798,2]
[356426879,1742436634172,-500.0,0.0002798,2]
[356426880,1742436634181,-521.26,0.0002798,2]
[356426881,1742436634191,-500.0,0.0002798,2]
[356426882,1742436634200,-500.0,0.0002798,2]
[356426883,1742436634210,-500.0,0.0002798,2]
[356426884,1742436634220,-500.0,0.0002798,2]
[356426885,1742436634232,-500.0,0.0002798,2]
[356426886,1742436634244,-500.0,0.0002798,2]
[356426887,1742436634254,-500.0,0.0002798,2]
[356426888,1742436634263,-500.0,0.0002798,2]
[356426889,1742436634273,-500.0,0.0002798,2]
[356426890,1742436634285,-500.0,0.0002798,2]
[356426891,1742436634294,-500.0,0.0002798,2]
[356426892,1742436634304,-500.0,0.0002798,2]
[356426893,1742436634315,-500.0,0.0002798,2]
[356426894,1742436634329,-500.0,0.0002798,2]
[356426895,1742436634339,-500.0,0.0002798,2]
[356426896,1742436634349,-1182.06,0.0002798,2]
[356426897,1742436634359,-500.0,0.0002798,2]
[356426898,1742436634369,-500.0,0.0002798,2]
[356426899,1742436634379,-500.0,0.0002798,2]
[356426900,1742436634389,-500.0,0.0002798,2]
[356426901,1742436634399,-500.0,0.0002798,2]
[356426902,1742436634408,-500.0,0.0002798,2]
[356426903,1742436634418,-500.0,0.0002798,2]
[356426904,1742436634427,-500.0,0.0002798,2]
[356426905,1742436634437,-500.0,0.0002798,2]
[356426906,1742436634447,-1235.06,0.0002798,2]
[356426907,1742436634456,-887.09254,0.0002798,2]
[356426908,1742436634466,-500.0,0.0002798,2]
[356426909,1742436634476,-500.0,0.0002798,2]
[356426910,1742436634485,-567.44,0.0002798,2]
[356426911,1742436634495,-500.0,0.0002798,2]
[356426912,1742436634505,-500.0,0.0002798,2]
[356426913,1742436634514,-500.0,0.0002798,2]
[356426914,1742436634524,-500.0,0.0002798,2]
[356426915,1742436634534,-500.0,0.0002798,2]
[356426916,1742436634543,-500.0,0.0002798,2]
[356426917,1742436634552,-500.0,0.0002798,2]
[356426918,1742436634562,-500.0,0.0002798,2]
[356426919,1742436634573,-500.0,0.0002798,2]
[356426920,1742436634583,-709.87,0.0002798,2]
[356426921,1742436634594,-1082.305582,0.0002798,2]
[356426922,1742436634603,-500.0,0.0002798,2]
[356426923,1742436634614,-669.19,0.0002798,2]
[356426924,1742436634623,-500.0,0.0002798,2]
[356426925,1742436634633,-500.0,0.0002798,2]
[356426926,1742436634643,-500.0,0.0002798,2]
[356426927,1742436634654,-500.0,0.0002798,2]
[356426928,1742436634663,-500.0,0.0002798,2]
[356426929,1742436634672,-500.0,0.0002798,2]
[356426930,1742436634682,-500.0,0.0002798,2]
[356426931,1742436634691,-500.0,0.0002798,2]
[356426932,1742436634700,-500.0,0.0002798,2]
[356426933,1742436634709,-500.0,0.0002798,2]
[356426934,1742436634718,-500.0,0.0002798,2]
[356426935,1742436634729,-669.44,0.0002798,2]
[356426936,1742436634739,-500.0,0.0002798,2]
[356426937,1742436634748,-500.0,0.0002798,2]
[356426938,1742436634757,-500.0,0.0002798,2]
[356426939,1742436634767,-500.0,0.0002798,2]
[356426940,1742436634776,-638.73,0.0002798,2]
[356426941,1742436634786,-500.0,0.0002798,2]
[356426942,1742436634795,-500.0,0.0002798,2]
[356426943,1742436634804,-500.0,0.0002798,2]
[356426944,1742436634813,-667.71,0.0002798,2]
[356426945,1742436634825,-500.0,0.0002798,2]
[356426946,1742436634834,-685.11,0.0002798,2]
[356426947,1742436634843,-500.0,0.0002798,2]
[356426948,1742436634853,-309.15903082,0.0002798,2]
[356426949,1742436634862,-500.0,0.0002798,2]
[356426950,1742436634871,-800.13,0.0002798,2]
[356426951,1742436634880,-500.0,0.0002798,2]
[356426952,1742436634889,-500.0,0.0002798,2]
[356426953,1742436634899,-500.0,0.0002798,2]
[356426954,1742436634909,-500.0,0.0002798,2]
[356426955,1742436634919,-712.15,0.0002798,2]
[356426956,1742436634929,-500.0,0.0002798,2]
[356426957,1742436634938,-500.0,0.0002798,2]
[356426958,1742436634948,-500.0,0.0002798,2]
[356426959,1742436634958,-500.0,0.0002798,2]
[356426960,1742436634967,-500.0,0.0002798,2]
[356426961,1742436634977,-500.0,0.0002798,2]
[356426962,1742436634986,-500.0,0.0002798,2]
[356426963,1742436634996,-612.93,0.0002798,2]
[356426964,1742436635005,-500.0,0.0002798,2]
[356426965,1742436635015,-500.0,0.0002798,2]
[356426966,1742436635024,-500.0,0.0002798,2]
[356426967,1742436635033,-500.0,0.0002798,2]
[356426968,1742436635042,-590.78,0.0002798,2]
[356426969,1742436635051,-500.0,0.0002798,2]
[356426970,1742436635060,-594.58,0.0002798,2]
[356426971,1742436635071,-951.39,0.0002798,2]
[356426972,1742436635081,-500.0,0.0002798,2]
[356426973,1742436635091,-682.18,0.0002798,2]
[356426974,1742436635100,-668.62,0.0002798,2]
[356426975,1742436635109,-500.0,0.0002798,2]
[356426976,1742436635120,-611.83,0.0002798,2]
[356426977,1742436635130,-500.0,0.0002798,2]
[356426978,1742436635140,-500.0,0.0002798,2]
[356426979,1742436635150,-948.52,0.0002798,2]
[356426980,1742436635160,-500.0,0.0002798,2]
[356426981,1742436635169,-500.0,0.0002798,2]
[356426982,1742436635178,-500.0,0.0002798,2]
[356426983,1742436635187,-500.0,0.0002798,2]
[356426984,1742436635196,-193.11098618,0.0002798,2]
[356426985,1742436635205,-500.0,0.0002798,2]
[356426986,1742436635215,-577.53378269,0.0002798,2]
[356426987,1742436635225,-500.0,0.0002798,2]
[356426988,1742436635237,-500.0,0.0002798,2]
[356426989,1742436635246,-518.08,0.0002798,2]
[356426990,1742436635256,-500.0,0.0002798,2]
[356426991,1742436635267,-500.0,0.0002798,2]
[356426992,1742436635276,-500.0,0.0002798,2]
[356426993,1742436635286,-500.0,0.0002798,2]
[356426994,1742436635295,-921.28,0.0002798,2]
[356426995,1742436635304,-500.0,0.0002798,2]
[356426996,1742436635318,-500.0,0.0002798,2]
[356426997,1742436635330,-500.0,0.0002798,2]
[356426998,1742436635340,-500.0,0.0002798,2]
[356426999,1742436635349,-500.0,0.0002798,2]
[356427000,1742436635358,-500.0,0.0002798,2]
[356427001,1742436635367,-500.0,0.0002798,2]
[356427002,1742436635376,-500.0,0.0002798,2]
[356427003,1742436635385,-500.0,0.0002798,2]
[356427004,1742436635394,-500.0,0.0002798,2]
[356427005,1742436635403,-500.0,0.0002798,2]
[356427006,1742436635412,-294.56537484,0.0002798,2]
[356427007,1742436635421,-856.12,0.0002798,2]
[356427008,1742436635430,-529.41,0.0002798,2]
[356427009,1742436635439,-604.35,0.0002798,2]
[356427010,1742436635448,-500.0,0.0002798,2]
[356427011,1742436635458,-500.0,0.0002798,2]
[356427012,1742436635466,-500.0,0.0002798,2]
[356427013,1742436635475,-271.366055,0.0002798,2]
[356427014,1742436635484,-500.0,0.0002798,2]
[356427015,1742436635493,-500.0,0.0002798,2]
[356427016,1742436635503,-598.7,0.0002798,2]
[356427017,1742436635513,-686.21,0.0002798,2]
[356427018,1742436635523,-500.0,0.0002798,2]
[356427019,1742436635532,-500.0,0.0002798,2]
[356427020,1742436635541,-500.0,0.0002798,2]
[356427021,1742436635551,-500.0,0.0002798,2]
[356427022,1742436635561,-500.0,0.0002798,2]
[356427023,1742436635571,-500.0,0.0002798,2]
[356427024,1742436635581,-154.64411083,0.0002798,2]
[356427025,1742436635591,-899.62,0.0002798,2]
[356427026,1742436635600,-642.25,0.0002798,2]
[356427027,1742436635609,-500.0,0.0002798,2]
[356427028,1742436635618,-222.502463,0.0002798,2]
[356427029,1742436635628,-500.0,0.0002798,2]
[356427030,1742436635638,-1828.51,0.0002798,2]
[356427031,1742436635647,-500.0,0.0002798,2]
[356427032,1742436635657,-500.0,0.0002798,2]
[356427033,1742436635666,-160.184471,0.0002798,2]
[356427034,1742436635675,-500.0,0.0002798,2]
[356427035,1742436635684,-500.0,0.0002798,2]
[356427036,1742436635693,-660.1,0.0002798,2]
[356427037,1742436635703,-500.0,0.0002798,2]
[356427038,1742436635713,-153.93338,0.0002798,2]
[356427039,1742436635722,-519.59,0.0002798,2]
[356427040,1742436635732,-500.0,0.0002798,2]
[356427041,1742436635741,-836.75,0.0002798,2]
[356427042,1742436635751,-750.58,0.0002798,2]
[356427043,1742436635761,-787.76,0.0002798,2]
[356427044,1742436635770,-500.0,0.0002798,2]
[356427045,1742436635779,-500.0,0.0002798,2]
[356427046,1742436635789,-758.2,0.0002798,2]
[356427047,1742436635798,-500.0,0.0002798,2]
[356427048,1742436635807,-500.0,0.0002798,2]
[356427049,1742436635817,-500.0,0.0002798,2]
[356427050,1742436635827,-500.0,0.0002798,2]
[356427051,1742436635836,-500.0,0.0002798,2]
[356427052,1742436635845,-500.0,0.0002798,2]
[356427053,1742436635857,-580.38,0.0002798,2]
[356427054,1742436635866,-1008.66,0.0002798,2]
[356427055,1742436635875,-500.0,0.0002798,2]
[356427056,1742436635884,-1015.51302,0.0002798,41]
[356427057,1742436635895,-500.0,0.0002798,2]
[356427058,1742436635904,-500.0,0.0002798,2]
[356427059,1742436635914,-951.45,0.0002798,2]
[356427060,1742436635923,-500.0,0.0002798,2]
[356427061,1742436635933,-500.0,0.0002798,2]
[356427062,1742436635942,-500.0,0.0002798,2]
[356427063,1742436635951,-500.0,0.0002798,2]
[356427064,1742436635960,-687.09,0.0002798,2]
[356427065,1742436635969,-500.0,0.0002798,2]
[356427066,1742436635978,-500.0,0.0002798,2]
[356427067,1742436635988,-500.0,0.0002798,2]
[356427068,1742436635997,-500.0,0.0002798,2]
[356427069,1742436636006,-500.0,0.0002798,2]
[356427070,1742436636016,-500.0,0.0002798,2]
[356427071,1742436636026,-662.78,0.0002798,2]
[356427072,1742436636035,-500.0,0.0002798,2]
[356427073,1742436636045,-500.0,0.0002798,2]
[356427074,1742436636054,-500.0,0.0002798,2]
[356427075,1742436636065,-531.26,0.0002798,2]
[356427076,1742436636075,-500.0,0.0002798,2]
[356427077,1742436636084,-500.0,0.0002798,2]
[356427078,1742436636093,-500.0,0.0002798,2]
[356427079,1742436636102,-500.0,0.0002798,2]
[356427080,1742436636112,-500.0,0.0002798,2]
[356427081,1742436636122,-500.0,0.0002798,2]
[356427082,1742436636131,-500.0,0.0002798,2]
[356427083,1742436636141,-500.0,0.0002798,2]
[356427084,1742436636151,-500.0,0.0002798,2]
[356427085,1742436636161,-613.64,0.0002798,2]
[356427086,1742436636170,-500.0,0.0002798,2]
[356427087,1742436636180,-183.13958485,0.0002798,2]
[356427088,1742436636189,-500.0,0.0002798,2]
[356427089,1742436636199,-500.0,0.0002798,2]
[356427090,1742436636210,-500.0,0.0002798,2]
[356427091,1742436636220,-500.0,0.0002798,2]
[356427092,1742436636231,-500.0,0.0002798,2]
[356427093,1742436636244,-847.05,0.0002798,2]
[356427094,1742436636255,-500.0,0.0002798,2]
[356427095,1742436636265,-500.0,0.0002798,2]
[356427096,1742436636274,-500.0,0.0002798,2]
[356427097,1742436636284,-500.0,0.0002798,2]
[356427098,1742436636293,-1042.03,0.0002798,2]
[356427099,1742436636303,-500.0,0.0002798,2]
[356427100,1742436636313,-500.0,0.0002798,2]
[356427101,1742436636323,-709.52,0.0002798,2]
[356427102,1742436636333,-500.0,0.0002798,2]
[356427103,1742436636343,-765.77,0.0002798,2]
[356427104,1742436636352,-500.0,0.0002798,2]
[356427105,1742436636363,-591.65,0.0002798,2]
[356427106,1742436636372,-190.32009834,0.0002798,2]
[356427107,1742436636382,-205.1867208,0.0002798,2]
[356427108,1742436636391,-500.0,0.0002798,2]
[356427109,1742436636402,-500.0,0.0002798,2]
[356427110,1742436636412,-500.0,0.00027981,2]
[356427111,1742436636422,-500.0,0.00027981,2]
[356427112,1742436636432,-500.0,0.00027981,2]
[356427113,1742436636442,-500.0,0.00027981,2]
[356427114,1742436636453,-500.0,0.00027981,2]
[356427115,1742436636463,-500.0,0.00027981,2]
[356427116,1742436636472,-707.73,0.00027981,2]
[356427117,1742436636482,-231.00858244,0.00027989,2]
[356427118,1742436636492,-151.0,0.00027991,2]
[356427119,1742436636502,-184.63831019,0.00027992,2]
[356427120,1742436636511,-11868.4100061,0.00027994,2]
[356427121,1742436636521,-1582.45466748,0.00027994,2]
[356427122,1742436636531,-275.4,0.00028,2]
[356427123,1742436636541,-201.35593609,0.00028,30]
[356427124,1742436636551,-1009.0,0.00028,2]
[356427125,1742436636561,-900.0,0.00028,29]
[356427126,1742436636571,-7500.60323913,0.00028004,2]
[356427127,1742436636581,-159.90868104,0.00028004,2]
[356427128,1742436636833,-7340.69455809,0.00028004,2]
[356427129,1742436636843,-22501.8097174,0.00028006,2]
[356427130,1742436636852,-484.84917185,0.0002801,2]
[356427131,1742436636863,-60004.825913,0.00028014,2]
[356427132,1742436636873,-154.390944,0.00028014,7]
[356427133,1742436636883,-151.0,0.00028014,7]
[356427134,1742436636893,-151.0,0.00028014,7]
[356427135,1742436636902,-151.0,0.00028014,7]
[356427136,1742436636912,-159.239263,0.00028014,7]
[356427137,1742436636921,-159.239263,0.00028014,7]
[356427138,1742436636931,-151.477213,0.00028014,7]
[356427139,1742436636941,-151.0,0.00028014,7]
[356427140,1742436636951,-189.482118,0.00028014,7]
[356427141,1742436636961,-189.482118,0.00028014,7]
[356427142,1742436636971,-151.0,0.00028014,7]
[356427143,1742436636981,-179.834747,0.00028014,7]
[356427144,1742436636991,-7500.60323913,0.00028014,2]
[356427145,1742436637001,-151.0,0.00028015,7]
[356427146,1742436637010,-15001.2064783,0.00028015,2]
[356427147,1742436637021,-7500.60323913,0.00028016,2]
[356427148,1742436637031,-151.774707,0.00028023,7]
[356427149,1742436637042,-154.094031,0.00028023,7]
[356427150,1742436637051,-45003.6194348,0.00028024,2]
[356427151,1742436637061,-151.0,0.00028024,7]
[356427152,1742436637072,-152.555482,0.00028024,7]
[356427153,1742436637082,-721.3,0.00028024,2]
[356427154,1742436637092,-151.0,0.00028024,7]
[356427155,1742436637102,-151.0,0.00028024,7]
[356427156,1742436637112,-500.0,0.00028024,2]
[356427157,1742436637121,-159.239263,0.00028024,7]
[356427158,1742436637132,-642.28,0.00028024,2]
[356427159,1742436637142,-159.239263,0.00028024,7]
[356427160,1742436637154,-370.50956174,0.00028024,2]
[356427161,1742436637164,-548.62,0.00028024,2]
[356427162,1742436637174,-500.0,0.00028024,2]
[356427163,1742436637184,-500.0,0.00028024,2]
[356427164,1742436637194,-730.07,0.00028024,2]